bitfinex/quotes_ETHUSD_20250107
["timestamp","ask_amount","ask_price","bid_price","bid_amount"]
[1736252124750,2.74856,3638.3,3638.0,0.195]
[1736252124983,1.73022724,3638.2,3638.0,0.195]
[1736252125156,7.22752724,3638.2,3638.0,0.195]
[1736252125766,6.40902724,3638.2,3638.0,0.195]
[1736252125993,5.57652005,3638.2,3638.0,0.195]
[1736252126890,5.57652005,3638.2,3638.1,1.19697738]
[1736252128061,5.57652005,3638.2,3638.1,6.19697738]
[1736252128256,5.57652005,3638.2,3638.1,8.94565738]
[1736252129378,5.57652005,3638.2,3638.1,11.38963865]
[1736252132607,5.57652005,3638.2,3638.1,10.23759979]
[1736252132908,5.4973,3638.2,3638.1,10.23759979]
[1736252133475,5.57712278,3638.2,3638.1,10.23759979]
[1736252133917,5.57712278,3638.2,3638.1,11.38963865]
[1736252136209,5.57712278,3638.2,3638.1,10.23759979]
[1736252140929,5.57712278,3638.2,3638.1,9.04062241]
[1736252141138,5.57712278,3638.2,3638.1,11.58463865]
[1736252141637,5.57712278,3638.2,3638.1,10.19266127]
[1736252141944,5.57712278,3638.2,3638.1,11.58463865]
[1736252142310,5.57712278,3638.2,3638.1,7.44398127]
[1736252142512,6.37962278,3638.2,3638.1,2.63898127]
[1736252142839,6.37979297,3638.2,3638.1,2.63898127]
[1736252143409,5.57729297,3638.2,3638.1,2.63898127]
[1736252143711,5.57729297,3638.2,3638.1,7.94368]
[1736252143913,5.57729297,3638.2,3638.1,5.6861]
[1736252144801,5.57729297,3638.2,3638.1,6.88307738]
[1736252145438,5.57729297,3638.2,3638.1,9.90307809]
[1736252147252,5.57729297,3638.2,3638.1,4.22936241]
[1736252147549,5.57729297,3638.2,3638.1,5.42633979]
[1736252148516,5.57729297,3638.2,3638.1,4.13439738]
[1736252148753,0.7768,3638.1,3638.0,1.48694241]
[1736252148948,0.7768,3638.1,3638.0,6.44482979]
[1736252149251,0.07725667,3638.1,3638.0,6.44482979]
[1736252149447,0.07725667,3638.1,3638.0,1.48694241]
[1736252149653,0.07725667,3638.1,3638.0,4.41253817]
[1736252150022,0.85405667,3638.1,3638.0,3.02056079]
[1736252150224,6.98649234,3638.1,3638.0,3.02056079]
[1736252150555,18.71267234,3638.1,3638.0,3.02056079]
[1736252150758,18.72017234,3638.1,3638.0,1.72861838]
[1736252150921,21.72767234,3638.1,3638.0,1.72861838]
[1736252151320,0.747,3637.8,3637.6,2.88009717]
[1736252151550,6.23204038,3637.7,3637.6,2.88009717]
[1736252151865,0.7245,3637.5,3637.4,1.72065289]
[1736252152157,19.15291738,3637.5,3637.4,1.72065289]
[1736252152358,19.22954997,3637.5,3637.4,1.72065289]
[1736252152921,9.6945,3636.7,3636.5,1.15278464]
[1736252153226,0.07587805,3636.6,3636.5,1.15278464]
[1736252153426,5.57317805,3636.6,3636.5,1.15278464]
[1736252153942,6.29767805,3636.6,3636.5,1.15278464]
[1736252154147,8.09940586,3636.6,3636.5,1.15278464]
[1736252154347,8.09940586,3636.6,3636.0,0.195]
[1736252154659,6.29767805,3636.6,3636.0,0.195]
[1736252155325,0.7245,3636.5,3635.9,2.84977359]
[1736252155634,0.07573928,3636.4,3635.9,2.84977359]
[1736252155831,0.7245,3636.3,3635.9,2.65477359]
[1736252156051,0.7245,3636.3,3635.8,0.195]
[1736252156052,0.07572914,3636.2,3635.8,0.195]
[1736252156461,0.07572914,3636.2,3635.3,2.75075]
[1736252156462,0.7245,3636.0,3635.3,2.65477359]
[1736252156667,0.7245,3635.9,3635.1,0.195]
[1736252156970,2.75056,3635.7,3635.1,0.195]
[1736252157163,10.04962568,3635.7,3635.1,0.195]
[1736252157364,0.7245,3635.5,3634.7,5.40602359]
[1736252157578,3.47515,3635.5,3634.8,0.75240562]
[1736252157866,0.07525321,3635.4,3634.8,0.75240562]
[1736252158068,5.57255321,3635.4,3634.8,0.195]
[1736252158254,1.80177032,3635.3,3634.8,0.195]
[1736252158564,10.04994032,3635.3,3634.7,0.195]
[1736252158743,9.04456516,3635.2,3634.7,0.195]
[1736252158936,14.54186516,3635.2,3634.7,0.195]
[1736252160538,14.54186516,3635.2,3635.0,2.65477359]
[1736252161245,14.54186516,3635.2,3634.8,0.195]
[1736252161827,14.54186516,3635.2,3634.8,2.94615]
[1736252162060,14.54186516,3635.2,3635.1,7.13305]
[1736252162061,5.57186516,3635.2,3635.1,7.13305]
[1736252162262,5.57186516,3635.2,3635.1,12.32805]
[1736252162660,5.4973,3635.2,3635.1,12.87400636]
[1736252163033,5.56942116,3635.2,3635.1,12.87400636]
[1736252164878,1.44310116,3635.2,3635.1,12.88150636]
[1736252165041,1.16e-06,3635.2,3635.1,12.88150636]
[1736252165244,0.7245,3636.6,3636.0,2.75026]
[1736252165437,0.07005632,3636.5,3636.4,2.65477359]
[1736252165671,8.97,3636.9,3636.4,10.59974359]
[1736252165884,0.7245,3637.0,3636.7,2.65477359]
[1736252166177,0.7245,3637.5,3636.7,2.65477359]
[1736252166384,2.10199981,3637.5,3636.7,2.65477359]
[1736252167031,4.85113981,3637.5,3636.7,2.65477359]
[1736252167778,11.07199981,3637.5,3636.8,2.74966]
[1736252167977,11.07199981,3637.5,3636.7,2.65477359]
[1736252168276,9.6945,3637.5,3636.7,5.40451359]
[1736252168453,9.6945,3637.5,3636.8,0.55]
[1736252168657,9.6945,3637.5,3636.8,3.29965]
[1736252169380,9.6945,3637.5,3636.8,0.55]
[1736252170379,9.6945,3637.5,3636.7,2.65477359]
[1736252170573,9.6945,3637.5,3636.7,5.40451359]
[1736252172088,9.6945,3637.5,3636.7,2.65477359]
[1736252172292,9.6945,3637.5,3636.9,2.74958]
[1736252172788,0.06874894,3637.4,3636.9,2.74958]
[1736252173387,0.06874894,3637.4,3636.7,5.40450359]
[1736252175550,0.06874894,3637.4,3636.8,2.74964]
[1736252175754,0.06874894,3637.4,3636.7,2.68226761]
[1736252176156,0.06874894,3637.4,3636.9,2.74957]
[1736252176466,0.06874894,3637.4,3636.7,5.40449359]
[1736252176674,0.06874894,3637.4,3636.8,0.195]
[1736252176853,0.06874894,3637.4,3636.8,2.94466]
[1736252178398,0.06874894,3637.4,3636.8,0.195]
[1736252179633,0.06874894,3637.4,3636.8,2.94466]
[1736252183187,0.06874894,3637.4,3636.8,0.195]
[1736252183389,0.06874894,3637.4,3636.9,2.74959]
[1736252184524,0.06874894,3637.4,3636.8,0.195]
[1736252184701,0.06874894,3637.4,3636.8,2.94464]
[1736252186726,0.06874894,3637.4,3636.8,0.195]
[1736252187029,0.06874894,3637.4,3636.9,2.74957]
[1736252187395,0.06874894,3637.4,3637.0,2.65477359]
[1736252187588,0.06874894,3637.4,3637.3,2.65477359]
[1736252188087,0.06807995,3637.4,3637.3,7.65477359]
[1736252188286,8.97,3637.7,3637.3,7.65477359]
[1736252188521,8.97,3637.7,3637.3,2.65477359]
[1736252188730,0.06808826,3637.6,3637.3,2.65477359]
[1736252189702,0.06808826,3637.6,3637.3,5.40401359]
[1736252190116,8.97,3637.7,3637.3,5.40401359]
[1736252190726,0.7245,3637.9,3637.3,5.40401359]
[1736252190928,0.06809206,3637.6,3637.3,5.40401359]
[1736252191129,0.7245,3637.9,3637.3,5.40401359]
[1736252191312,0.06808699,3637.5,3637.3,5.40401359]
[1736252191487,0.7245,3637.9,3637.3,5.40401359]
[1736252191687,0.06823809,3637.4,3637.3,5.40401359]
[1736252192005,0.7245,3637.9,3637.3,5.40401359]
[1736252192006,0.7245,3637.9,3637.3,10.40401359]
[1736252192208,0.7245,3637.9,3637.3,5.40401359]
[1736252192525,0.06825835,3637.8,3637.3,5.40401359]
[1736252193088,0.06825835,3637.8,3637.3,2.65477359]
[1736252193297,3.47351,3637.7,3637.3,0.195]
[1736252193490,0.35417683,3637.6,3636.7,5.40444359]
[1736252193796,0.42242059,3637.6,3636.8,0.195]
[1736252194535,0.42242059,3637.6,3636.8,2.94465]
[1736252195252,0.42242059,3637.6,3637.0,0.56357471]
[1736252195409,0.2488,3637.4,3637.0,0.56357471]
[1736252195610,5.7475,3637.4,3637.0,0.56357471]
[1736252195811,0.06822856,3637.3,3637.0,0.56357471]
[1736252196010,5.56692856,3637.3,3637.0,0.56357471]
[1736252196824,0.7245,3637.2,3637.0,0.56357471]
[1736252197114,6.2232,3637.2,3636.9,0.195]
[1736252197250,0.06823053,3637.1,3636.9,0.195]
[1736252197566,5.56693053,3637.1,3636.9,0.195]
[1736252197864,5.56693053,3637.1,3636.4,2.65477359]
[1736252198163,5.56693053,3637.1,3636.8,0.195]
[1736252198357,0.96577311,3637.0,3636.8,0.195]
[1736252198561,6.53238004,3637.0,3636.8,0.195]
[1736252198732,6.53238004,3637.0,3636.4,5.40473359]
[1736252198733,6.53238004,3637.0,3636.7,0.195]
[1736252203974,9.28196004,3637.0,3636.7,0.195]
[1736252205888,6.53238004,3637.0,3636.7,0.195]
[1736252207485,0.95590851,3636.9,3636.7,0.195]
[1736252207684,0.06754965,3636.8,3636.7,0.195]
[1736252207846,5.56624965,3636.8,3636.7,0.195]
[1736252212173,5.56624965,3636.8,3636.3,0.55401098]
[1736252212174,6.29074965,3636.8,3636.3,0.55401098]
[1736252212388,6.29074965,3636.8,3636.4,0.195]
[1736252212687,0.7245,3636.2,3636.1,0.195]
[1736252212997,6.29048687,3636.2,3636.0,1.71921449]
[1736252213149,2.75019,3636.1,3636.0,1.71921449]
[1736252213347,8.31617732,3636.1,3636.0,1.71921449]
[1736252213874,2.75035,3635.9,3635.8,0.195]
[1736252214058,10.05013373,3635.9,3635.5,0.195]
[1736252214260,10.11737341,3635.9,3635.4,1.71811749]
[1736252214470,3.47494,3635.8,3635.5,0.195]
[1736252214752,0.06621139,3635.7,3635.5,0.195]
[1736252215050,0.06620175,3635.6,3635.5,0.195]
[1736252215291,5.56490175,3635.6,3635.5,0.195]
[1736252219165,5.97681256,3635.6,3635.0,0.53779616]
[1736252219366,8.72745256,3635.6,3635.4,0.195]
[1736252220484,5.97681256,3635.6,3635.4,0.195]
[1736252220686,5.56490175,3635.6,3635.4,0.195]
[1736252221198,5.56490175,3635.6,3635.5,3.43647359]
[1736252221695,5.56490175,3635.6,3635.5,0.7817]
[1736252222584,5.56490175,3635.6,3635.4,0.195]
[1736252223159,5.56490175,3635.6,3635.0,0.53779616]
[1736252223361,2.45304017,3635.5,3635.1,0.195]
[1736252223590,8.01566933,3635.5,3635.1,0.195]
[1736252224261,6.28712916,3635.5,3635.1,0.195]
[1736252224462,5.56262916,3635.5,3635.1,0.195]
[1736252226901,5.56262916,3635.5,3635.1,2.94593]
[1736252228899,5.56262916,3635.5,3635.1,0.195]
[1736252229395,0.7245,3635.3,3635.0,0.195]
[1736252229603,1.80078392,3635.2,3635.0,0.195]
[1736252229807,7.36329028,3635.2,3635.0,0.195]
[1736252229996,7.36329028,3635.2,3634.8,0.195]
[1736252230206,10.11418028,3635.2,3634.8,0.195]
[1736252230795,7.36329028,3635.2,3634.8,0.195]
[1736252230994,5.56250636,3635.2,3634.8,0.195]
[1736252231211,5.56250636,3635.2,3635.1,2.75095]
[1736252231412,5.56250636,3635.2,3634.9,8.45517359]
[1736252231413,5.56250636,3635.2,3634.9,6.20626359]
[1736252231724,5.56250636,3635.2,3635.0,4.82737]
[1736252232019,5.56250636,3635.2,3635.1,4.81559]
[1736252232220,5.4987,3635.2,3635.1,5.33011]
[1736252233401,5.55797121,3635.2,3635.1,5.33011]
[1736252237509,5.55797121,3635.2,3635.1,2.57916]
[1736252237715,5.55797121,3635.2,3635.1,2.39037]
[1736252238022,5.55825826,3635.2,3635.1,0.195]
[1736252238228,6.18653409,3635.2,3635.1,0.195]
[1736252239912,5.55825826,3635.2,3635.1,0.195]
[1736252242103,5.55825826,3635.2,3634.6,3.2024738]
[1736252242645,5.55825826,3635.2,3634.7,0.195]
[1736252243711,8.30915826,3635.2,3634.7,0.195]
[1736252243910,2.75096,3635.1,3634.7,0.195]
[1736252244122,0.90337183,3635.0,3634.7,0.195]
[1736252244309,6.40207183,3635.0,3634.7,0.195]
[1736252244744,6.4616002,3635.0,3634.7,0.195]
[1736252247525,15.4316002,3635.0,3634.7,0.195]
[1736252250651,0.7245,3634.9,3634.2,0.195]
[1736252250860,6.2232,3634.9,3634.2,0.195]
[1736252251009,0.05945685,3634.8,3634.2,0.195]
[1736252251210,5.55815685,3634.8,3634.2,0.195]
[1736252251960,0.7245,3634.7,3634.1,5.96473258]
[1736252252118,11.72134,3634.6,3634.1,0.195]
[1736252252447,17.27916418,3634.6,3634.1,0.195]
[1736252252651,8.97,3634.5,3633.6,1.14815491]
[1736252252816,15.1932,3634.5,3633.7,0.195]
[1736252253018,2.75166,3634.2,3633.7,0.195]
[1736252253219,5.4987,3634.2,3633.7,0.195]
[1736252253439,0.78356778,3634.1,3633.7,0.195]
[1736252253767,6.28226778,3634.1,3633.7,0.195]
[1736252254147,6.28226778,3634.1,3633.8,0.195]
[1736252255269,7.13692549,3634.1,3633.6,0.53967475]
[1736252255469,18.85865549,3634.1,3633.3,0.195]
[1736252256277,2.75179,3634.0,3633.4,0.195]
[1736252256476,8.25049,3634.0,3633.4,0.195]
[1736252256683,8.25049,3634.0,3633.2,0.55948943]
[1736252256684,11.78041317,3633.9,3633.2,0.55948943]
[1736252256843,4.63778709,3633.8,3633.3,0.195]
[1736252257208,0.05841897,3633.7,3633.3,0.195]
[1736252257374,0.7245,3633.6,3633.1,0.29625539]
[1736252257581,2.7523,3633.4,3633.1,0.29625539]
[1736252257875,8.251,3633.4,3633.1,0.29625539]
[1736252258049,0.05818771,3633.3,3633.1,0.29625539]
[1736252258233,5.55688771,3633.3,3633.1,0.29625539]
[1736252258439,6.46025648,3633.3,3633.1,0.01]
[1736252269592,2.75239,3633.2,3633.1,0.01]
[1736252269749,5.4987,3633.2,3633.1,0.01]
[1736252269950,5.55520447,3633.2,3633.1,0.01]
[1736252273875,5.55520447,3633.2,3633.1,0.8201]
[1736252275889,5.55520447,3633.2,3633.1,0.01]
[1736252276105,7.08017492,3633.2,3633.1,0.01]
[1736252276289,9.83256492,3633.2,3633.1,0.01]
[1736252276619,7.08017492,3633.2,3633.1,0.01]
[1736252277418,9.83256492,3633.2,3633.1,0.01]
[1736252278700,5.55520447,3633.2,3633.1,0.01]
[1736252278901,5.55520447,3633.2,3633.1,0.8388]
[1736252279110,5.4987,3633.2,3633.1,0.8388]
[1736252279527,5.5525544,3633.2,3633.1,0.8388]
[1736252279753,5.5525544,3633.2,3633.1,7.39685]
[1736252280026,5.4987,3633.2,3633.1,6.09911]
[1736252280230,5.4987,3633.2,3633.1,3.34664]
[1736252280429,5.55228504,3633.2,3633.1,0.8388]
[1736252280900,5.55228504,3633.2,3633.1,4.31516]
[1736252281317,5.55228504,3633.2,3633.1,6.7547]
[1736252282201,5.55228504,3633.2,3633.1,9.7547]
[1736252282730,5.4987,3633.2,3633.1,9.7547]
[1736252283030,5.5525724,3633.2,3633.1,9.7547]
[1736252283642,5.4987,3633.2,3633.1,9.7547]
[1736252284640,5.4987,3633.2,3633.1,10.29580604]
[1736252287419,1.3701,3633.2,3633.1,12.84580604]
[1736252287739,0.7245,3634.8,3633.1,12.84580604]
[1736252287740,0.7245,3634.8,3634.1,2.75167]
[1736252287931,0.05420314,3634.7,3634.2,2.94663]
[1736252288126,0.7245,3634.8,3634.2,2.94663]
[1736252288531,0.05446063,3634.7,3634.2,2.94663]
[1736252288742,0.05446063,3634.7,3634.2,0.195]
[1736252294342,1.02935669,3634.7,3633.8,2.65477359]
[1736252294648,2.75143,3634.5,3633.9,0.195]
[1736252294852,3.47593,3634.5,3633.8,0.195]
[1736252295054,0.05459313,3634.4,3633.5,3.90160375]
[1736252295265,3.47609,3634.3,3633.6,0.195]
[1736252295449,0.35306831,3634.2,3633.6,0.195]
[1736252295864,0.05464524,3634.1,3633.6,0.195]
[1736252296222,0.7245,3634.3,3633.7,0.8147]
[1736252296437,0.05461693,3634.0,3633.7,0.8147]
[1736252296740,0.05461631,3633.9,3633.7,0.8147]
[1736252297059,8.97,3634.2,3633.7,0.8147]
[1736252297291,0.05460677,3633.8,3633.7,0.8147]
[1736252297465,8.97,3634.2,3633.7,6.09837]
[1736252297631,8.97,3634.2,3633.7,3.56671]
[1736252297632,0.05459725,3633.8,3633.7,3.56671]
[1736252297832,8.97,3634.2,3633.7,7.93823]
[1736252298043,0.05459725,3633.8,3633.7,3.56671]
[1736252298375,8.97,3634.2,3633.7,5.18622]
[1736252298570,0.05460867,3634.1,3633.8,2.75192]
[1736252298997,0.05460867,3634.1,3633.9,0.195]
[1736252300540,0.05460867,3634.1,3633.9,2.94679]
[1736252300737,8.97,3634.2,3634.0,5.0]
[1736252300938,8.97,3634.2,3634.1,6.20178359]
[1736252301247,8.97,3634.2,3634.1,9.92992359]
[1736252301455,0.7245,3634.8,3634.1,6.10469359]
[1736252301657,0.7245,3634.8,3634.3,2.75154]
[1736252301844,0.05453088,3634.7,3634.3,2.75154]
[1736252303092,0.05453088,3634.7,3633.9,0.195]
[1736252303477,0.05453088,3634.7,3633.9,2.9468]
[1736252303680,0.05453088,3634.7,3633.9,2.7518]
[1736252303844,0.05453088,3634.7,3634.0,2.94677]
[1736252304204,0.05453088,3634.7,3634.1,2.75171]
[1736252304698,0.05453088,3634.7,3634.1,5.40648359]
[1736252305943,0.05453088,3634.7,3634.2,0.53876149]
[1736252308481,0.05453088,3634.7,3634.2,3.29039149]
[1736252310152,0.05453088,3634.7,3634.2,0.53876149]
[1736252312597,5.55743088,3634.7,3634.2,0.53876149]
[1736252315301,5.55743088,3634.7,3634.2,3.29038149]
[1736252315515,5.55743088,3634.7,3634.6,2.75133]
[1736252315800,5.5029,3634.7,3634.6,3.55873]
[1736252316016,5.55784363,3634.7,3634.6,8.55873]
[1736252316297,5.55784363,3634.7,3634.6,11.55873]
[1736252317109,5.5029,3634.7,3634.6,11.55873]
[1736252317886,5.5029,3634.7,3634.6,12.10873]
[1736252320065,5.5029,3634.7,3634.6,11.30133]
[1736252320270,5.5029,3634.7,3634.6,13.95610359]
[1736252320786,5.5029,3634.7,3634.6,14.72070359]
[1736252321615,5.5029,3634.7,3634.6,0.195]
[1736252321951,5.55847529,3634.7,3634.6,1.3446879]
[1736252322152,6.28297529,3634.7,3634.6,1.1496879]
[1736252323366,18.65502282,3634.7,3634.6,1.1496879]
[1736252323562,18.65502282,3634.7,3633.8,1.1496879]
[1736252323563,9.6945,3634.0,3633.8,1.1496879]
[1736252323768,2.80668017,3633.9,3633.8,1.1496879]
[1736252323967,12.50118017,3633.9,3633.8,1.1496879]
[1736252324177,21.01908017,3633.9,3633.8,1.1496879]
[1736252324380,23.66163455,3633.9,3633.8,1.1496879]
[1736252324578,23.66913455,3633.9,3633.8,1.1496879]
[1736252324989,2.75222,3633.5,3633.1,0.01]
[1736252325192,0.7245,3633.3,3633.1,0.01]
[1736252325377,11.77700146,3633.2,3633.1,0.01]
[1736252325577,17.27990146,3633.2,3633.1,0.01]
[1736252325804,19.80559161,3633.2,3633.1,0.01]
[1736252330167,18.00440146,3633.2,3633.1,0.01]
[1736252330480,15.25201146,3633.2,3633.1,0.01]
[1736252331481,6.28201146,3633.2,3633.1,0.01]
[1736252336023,5.55751146,3633.2,3633.1,0.01]
[1736252341428,6.28201146,3633.2,3633.1,0.01]
[1736252342267,7.80721261,3633.2,3633.1,0.01]
[1736252342460,6.28201146,3633.2,3633.1,0.01]
[1736252343040,9.03440146,3633.2,3633.1,0.01]
[1736252343247,9.04940146,3633.2,3633.1,0.01]
[1736252343448,18.01940146,3633.2,3633.1,0.01]
[1736252344069,18.02690146,3633.2,3633.1,0.01]
[1736252344328,20.10481361,3633.2,3633.1,0.01]
[1736252344727,23.10481361,3633.2,3633.1,0.01]
[1736252345979,12.4475,3632.4,3632.3,0.0483626]
[1736252346130,17.9504,3632.4,3632.3,0.0483626]
[1736252346331,20.07351841,3632.4,3632.3,0.0483626]
[1736252348392,18.00319641,3632.4,3632.3,0.0483626]
[1736252348898,18.00319641,3632.4,3631.6,0.195]
[1736252348899,15.25019641,3632.4,3631.6,0.1933626]
[1736252349032,14.52569641,3632.4,3631.7,0.7764]
[1736252349549,8.97,3632.3,3631.8,0.195]
[1736252349733,14.4729,3632.3,3631.8,0.195]
[1736252349936,0.05256898,3632.2,3631.7,3.52992]
[1736252350156,5.55546898,3632.2,3631.8,0.195]
[1736252351541,5.55546898,3632.2,3631.9,2.65477359]
[1736252351876,5.5029,3632.2,3632.0,2.75328]
[1736252352261,0.05239,3632.1,3632.0,2.75328]
[1736252352452,0.05239,3632.1,3632.0,2.85835]
[1736252352649,0.05239,3632.1,3631.8,0.195]
[1736252353149,0.05239,3632.1,3631.7,2.75351]
[1736252353352,1.504919,3632.1,3631.5,0.75034444]
[1736252353571,0.7245,3632.0,3631.5,0.75034444]
[1736252354077,0.05256405,3631.9,3631.1,0.195]
[1736252354299,5.55546405,3631.9,3631.1,0.195]
[1736252354502,0.7245,3631.8,3631.0,2.75399]
[1736252354643,6.2274,3631.8,3630.9,0.55025101]
[1736252354842,2.7536,3631.6,3630.9,0.55025101]
[1736252355143,0.7245,3631.4,3630.5,3.9041079]
[1736252355363,2.75396,3631.2,3630.0,5.40952359]
[1736252355555,2.75398,3631.1,3630.1,0.195]
[1736252355751,5.55511332,3631.1,3630.2,5.75465]
[1736252355964,5.55511332,3631.1,3630.1,3.195]
[1736252355965,0.7245,3631.0,3630.1,3.195]
[1736252356268,0.0519331,3630.9,3630.1,3.195]
[1736252356579,5.5548331,3630.9,3630.4,0.55454727]
[1736252357082,5.5548331,3630.9,3630.6,2.65477359]
[1736252357244,5.5548331,3630.9,3630.6,5.40906359]
[1736252357768,5.5548331,3630.9,3630.7,0.195]
[1736252358143,5.5548331,3630.9,3630.5,0.195]
[1736252358900,0.7245,3630.8,3630.2,0.195]
[1736252359196,6.2274,3630.8,3629.9,2.75487]
[1736252359352,0.05164426,3630.7,3629.8,0.195]
[1736252359551,5.55454426,3630.7,3629.8,0.195]
[1736252359764,0.7245,3630.6,3629.8,0.195]
[1736252359985,8.17297576,3630.6,3630.1,0.53886986]
[1736252360152,0.05141553,3630.5,3629.2,2.75542]
[1736252360358,0.7245,3630.2,3629.3,0.195]
[1736252360579,8.98207,3630.2,3629.3,0.195]
[1736252360789,0.05140651,3630.1,3629.3,3.195]
[1736252361099,5.55430651,3630.1,3629.4,2.65477359]
[1736252361253,5.55430651,3630.1,3629.5,2.75513]
[1736252361451,5.55430651,3630.1,3629.4,2.68232372]
[1736252361687,5.55430651,3630.1,3629.7,2.65477359]
[1736252361994,5.55430651,3630.1,3629.9,2.75489]
[1736252362316,5.55430651,3630.1,3630.0,2.75482]
[1736252362657,5.55430651,3630.1,3630.0,5.28671]
[1736252362859,5.55430651,3630.1,3629.7,5.40975359]
[1736252363702,5.55430651,3630.1,3629.8,2.75492]
[1736252364691,5.55430651,3630.1,3629.6,3.0]
[1736252365268,5.55430651,3630.1,3629.7,0.195]
[1736252365460,5.55213691,3630.1,3629.7,0.195]
[1736252366090,5.55213691,3630.1,3629.8,0.195]
[1736252367871,5.55213691,3630.1,3629.5,2.75513]
[1736252368212,5.55213691,3630.1,3629.7,5.40980359]
[1736252368990,5.55213691,3630.1,3629.7,2.65477359]
[1736252369186,5.55213691,3630.1,3629.8,2.75495]
[1736252370073,5.55213691,3630.1,3629.7,2.68232184]
[1736252370279,5.55213691,3630.1,3629.9,2.75488]
[1736252370492,5.55213691,3630.1,3630.0,2.75482]
[1736252370689,5.5029,3630.1,3630.0,4.94901]
[1736252370912,5.5029,3630.1,3630.0,2.19419]
[1736252371110,5.55170249,3630.1,3629.8,2.75495]
[1736252373080,5.55170249,3630.1,3629.7,0.5470741]
[1736252373512,5.55170249,3630.1,3629.7,3.3021141]
[1736252374004,0.7245,3630.0,3629.7,3.3021141]
[1736252374204,0.04887687,3629.9,3629.8,0.202]
[1736252374595,5.5029,3630.1,3629.8,0.202]
[1736252374789,0.04888196,3630.0,3629.8,0.202]
[1736252375603,0.04888196,3630.0,3629.9,3.40839]
[1736252375811,0.04888196,3630.0,3629.8,0.202]
[1736252376318,0.04888196,3630.0,3629.9,5.69142]
[1736252377207,0.04888196,3630.0,3629.9,3.54739]
[1736252377384,0.04888196,3630.0,3629.9,0.7925]
[1736252378221,0.04888196,3630.0,3629.8,0.202]
[1736252378423,0.04888196,3630.0,3629.9,2.75489]
[1736252378618,0.04888196,3630.0,3629.9,5.55427]
[1736252379739,5.5029,3630.1,3630.0,5.75482]
[1736252379940,5.5029,3630.1,3630.0,10.75482]
[1736252386827,4.89110752,3630.1,3630.0,10.75482]
[1736252387059,4.94003268,3630.1,3630.0,10.75482]
[1736252387871,4.89110752,3630.1,3630.0,10.75482]
[1736252389073,4.89110752,3630.1,3630.0,8.65939]
[1736252389286,4.89110752,3630.1,3630.0,5.95682]
[1736252389590,4.89110752,3630.1,3630.0,8.22636]
[1736252390340,4.89110752,3630.1,3630.0,8.02436]
[1736252390567,4.89110752,3630.1,3630.0,8.22636]
[1736252392577,4.89110752,3630.1,3630.0,9.03366]
[1736252392802,4.89110752,3630.1,3630.0,9.58366]
[1736252393365,4.32081649,3630.1,3630.0,9.58366]
[1736252393704,4.32081649,3630.1,3630.0,12.23843359]
[1736252393867,2.94344649,3630.1,3630.0,12.23843359]
[1736252394063,0.7245,3631.3,3630.0,8.67631359]
[1736252394262,0.04921351,3631.2,3631.1,2.75391]
[1736252394467,0.7245,3631.6,3631.1,2.95591]
[1736252394700,0.04932319,3631.5,3631.1,0.202]
[1736252400805,0.7245,3631.4,3631.1,0.202]
[1736252401186,0.04960516,3631.3,3631.1,0.202]
[1736252403493,0.04960516,3631.3,3631.2,2.75391]
[1736252403729,8.97,3631.7,3631.2,5.36816]
[1736252403905,0.0496271,3631.3,3631.2,2.75391]
[1736252404106,8.97,3631.7,3631.2,7.61542]
[1736252404327,0.04980243,3631.3,3631.2,2.75391]
[1736252404530,8.97,3631.7,3631.4,2.75375]
[1736252404900,8.97,3632.5,3631.5,2.75363]
[1736252405105,1.7358251,3632.4,3631.5,2.75363]
[1736252405505,10.7058251,3632.4,3631.7,2.65477359]
[1736252405703,0.7245,3632.4,3631.5,0.197]
[1736252406002,2.7531,3632.3,3631.5,0.197]
[1736252406202,0.7245,3632.3,3631.5,0.197]
[1736252406410,0.7245,3632.3,3631.5,0.75370165]
[1736252406633,0.7245,3632.1,3631.4,1.15239614]
[1736252406810,8.97,3631.6,3631.4,1.15239614]
[1736252407008,13.41763,3631.5,3631.4,1.15239614]
[1736252407736,2.75375,3631.4,3631.3,0.197]
[1736252408726,8.26135,3631.4,3631.3,0.197]
[1736252409251,17.23135,3631.4,3630.9,0.197]
[1736252412270,8.97,3631.3,3630.9,0.197]
[1736252412473,14.4776,3631.3,3630.9,0.197]
[1736252413376,0.77422888,3631.2,3630.9,0.197]
[1736252413660,6.28182888,3631.2,3630.9,0.197]
[1736252419468,9.7095,3630.5,3630.4,1.15239614]
[1736252419636,20.97154,3630.5,3630.4,1.15239614]
[1736252419965,21.0209725,3630.5,3630.4,1.15239614]
[1736252420160,23.66397211,3630.5,3630.4,1.15239614]
[1736252421465,23.67147211,3630.5,3630.4,1.15239614]
[1736252421638,23.67147211,3630.5,3629.2,1.34939614]
[1736252421639,2.75508,3629.7,3629.2,1.34939614]
[1736252421838,3.47958,3629.7,3629.2,1.34939614]
[1736252422037,0.04891103,3629.6,3629.2,1.34939614]
[1736252422238,2.75535,3629.3,3629.2,1.15239614]
[1736252422439,8.26295,3629.3,3629.2,1.15239614]
[1736252422766,9.03634576,3629.3,3629.2,1.15239614]
[1736252423351,18.00634576,3629.3,3629.2,1.15239614]
[1736252423551,18.00634576,3629.3,3628.7,3.05688617]
[1736252423552,2.75552,3629.1,3628.8,1.15239614]
[1736252423860,0.7245,3629.0,3628.8,1.15239614]
[1736252424067,6.28011881,3629.0,3628.8,1.15239614]
[1736252424655,11.72565,3628.9,3628.8,1.15239614]
[1736252424991,14.52562835,3628.9,3628.7,0.1758958]
[1736252427098,14.52562835,3628.9,3628.8,2.75573]
[1736252428459,14.52562835,3628.9,3628.7,0.1758958]
[1736252428958,14.52562835,3628.9,3628.8,2.75573]
[1736252429161,14.52562835,3628.9,3628.7,0.1758958]
[1736252429482,14.52562835,3628.9,3628.7,2.9316858]
[1736252429684,14.4776,3628.9,3628.7,2.9316858]
[1736252429876,14.4776,3628.9,3628.7,0.1758958]
[1736252430076,0.04751301,3628.8,3628.7,0.1758958]
[1736252430593,0.04751301,3628.8,3628.7,0.3778958]